[Event "*** Titled Tuesday Blitz"]
[Site "Chess.com"]
[Date "2020.10.27"]
[Round "6"]
[White "chessasuke"]
[Black "swimmerchess"]
[Result "0-1"]
[WhiteElo "2600"]
[BlackElo "2808"]
[TimeControl "180+1"]
[EndTime "11:06:12 PDT"]
[Termination "swimmerchess won by resignation"]

1. d4 {[%clk 0:02:56.4]} 1... Nf6 {[%clk 0:03:00.2]} 2. Nf3 {[%clk 0:02:55.8]}
2... g6 {[%clk 0:03:00.6]} 3. c4 {[%clk 0:02:55.4]} 3... Bg7 {[%clk 0:03:01]} 4.
Nc3 {[%clk 0:02:56.3]} 4... O-O {[%clk 0:03:01.9]} 5. e4 {[%clk 0:02:56.6]} 5...
d6 {[%clk 0:03:02.5]} 6. Be2 {[%clk 0:02:57.2]} 6... e5 {[%clk 0:03:03.1]} 7.
O-O {[%clk 0:02:57.8]} 7... Nc6 {[%clk 0:03:03.1]} 8. d5 {[%clk 0:02:57.7]} 8...
Ne7 {[%clk 0:03:03.4]} 9. b4 {[%clk 0:02:57]} 9... Nh5 {[%clk 0:03:03.6]} 10.
Re1 {[%clk 0:02:57.1]} 10... f5 {[%clk 0:03:02.7]} 11. Ng5 {[%clk 0:02:55.9]}
11... Nf6 {[%clk 0:03:03.3]} 12. Bf3 {[%clk 0:02:54.9]} 12... Rb8 {[%clk
0:03:02.5]} 13. a4 {[%clk 0:02:48.4]} 13... h6 {[%clk 0:02:55.2]} 14. Ne6 {[%clk
0:02:47.9]} 14... Bxe6 {[%clk 0:02:55.8]} 15. dxe6 {[%clk 0:02:48.8]} 15... Qc8
{[%clk 0:02:55.9]} 16. Nd5 {[%clk 0:02:46]} 16... Qxe6 {[%clk 0:02:55.9]} 17.
Nxc7 {[%clk 0:02:27]} 17... Qxc4 {[%clk 0:02:46.3]} 18. Nb5 {[%clk 0:02:26.4]}
18... Nxe4 {[%clk 0:02:08.9]} 19. Bxe4 {[%clk 0:02:17.8]} 19... fxe4 {[%clk
0:02:09.8]} 20. Nxd6 {[%clk 0:02:13.3]} 20... Qxb4 {[%clk 0:02:07.6]} 21. Ba3
{[%clk 0:02:02.3]} 21... Qb6 {[%clk 0:01:56.7]} 22. Nxe4 {[%clk 0:01:55.9]}
22... Rfd8 {[%clk 0:01:56.2]} 23. Qg4 {[%clk 0:01:53.2]} 23... Nf5 {[%clk
0:01:55.4]} 24. Rab1 {[%clk 0:01:44.6]} 24... Qc6 {[%clk 0:01:54.8]} 25. Rec1
{[%clk 0:01:38.8]} 25... Qe6 {[%clk 0:01:50.2]} 26. Nc5 {[%clk 0:01:32.3]} 26...
Qf7 {[%clk 0:01:49]} 27. a5 {[%clk 0:01:25.6]} 27... b6 {[%clk 0:01:45.2]} 28.
axb6 {[%clk 0:01:24.8]} 28... axb6 {[%clk 0:01:46.1]} 29. Ne4 {[%clk 0:01:25.2]}
29... b5 {[%clk 0:01:45.7]} 30. Bc5 {[%clk 0:01:22.7]} 30... Kh7 {[%clk
0:01:38]} 31. g3 {[%clk 0:01:20.4]} 31... Qd5 {[%clk 0:01:30.9]} 32. h4 {[%clk
0:01:12.2]} 32... h5 {[%clk 0:01:27.4]} 33. Qe2 {[%clk 0:01:06.9]} 33... Qd3
{[%clk 0:01:09.8]} 34. Ng5+ {[%clk 0:01:04.1]} 34... Kg8 {[%clk 0:01:09.4]} 35.
Qa2+ {[%clk 0:01:04.1]} 35... Qd5 {[%clk 0:01:09.4]} 36. Qe2 {[%clk 0:00:52.9]}
36... Rdc8 {[%clk 0:01:04.3]} 37. Rxb5 {[%clk 0:00:34.3]} 37... Nd4 {[%clk
0:01:02.5]} 38. Qb2 {[%clk 0:00:16.8]} 38... Rxb5 {[%clk 0:00:58.8]} 39. Qxb5
{[%clk 0:00:16.7]} 39... Nxb5 {[%clk 0:00:57.7]} 0-1

[Event "*** Titled Tuesday Blitz"]
[Site "Chess.com"]
[Date "2020.10.27"]
[Round "6"]
[White "Omk124"]
[Black "Keures"]
[Result "1-0"]
[WhiteElo "2410"]
[BlackElo "2223"]
[TimeControl "180+1"]
[EndTime "11:06:15 PDT"]
[Termination "Omk124 won by resignation"]

1. e4 {[%clk 0:03:00.9]} 1... e6 {[%clk 0:02:28.1]} 2. d4 {[%clk 0:02:58.9]}
2... d5 {[%clk 0:02:28.3]} 3. Nd2 {[%clk 0:02:59.4]} 3... Nf6 {[%clk 0:02:28.2]}
4. e5 {[%clk 0:02:59.8]} 4... Ne4 {[%clk 0:02:27.3]} 5. Nxe4 {[%clk 0:02:41.6]}
5... dxe4 {[%clk 0:02:28.2]} 6. Bc4 {[%clk 0:02:40.7]} 6... a6 {[%clk 0:02:27]}
7. Ne2 {[%clk 0:02:40.2]} 7... c5 {[%clk 0:02:24]} 8. c3 {[%clk 0:02:39.7]} 8...
Nc6 {[%clk 0:02:23.7]} 9. O-O {[%clk 0:02:39.3]} 9... Be7 {[%clk 0:02:22.7]} 10.
Be3 {[%clk 0:02:38.7]} 10... cxd4 {[%clk 0:02:21.9]} 11. cxd4 {[%clk 0:02:37.6]}
11... O-O {[%clk 0:02:20.5]} 12. Ng3 {[%clk 0:02:37.2]} 12... b5 {[%clk
0:02:09.9]} 13. Bb3 {[%clk 0:02:34.7]} 13... Bb7 {[%clk 0:02:10.3]} 14. Bc2
{[%clk 0:02:29.3]} 14... Bg5 {[%clk 0:01:52.1]} 15. Bxg5 {[%clk 0:02:27]} 15...
Qxg5 {[%clk 0:01:51.7]} 16. Nxe4 {[%clk 0:02:27.5]} 16... Qh4 {[%clk 0:01:41.5]}
17. Nd6 {[%clk 0:02:25.3]} 17... Nd8 {[%clk 0:01:27.3]} 18. g3 {[%clk
0:01:59.8]} 18... Qh3 {[%clk 0:01:20.7]} 19. Nxb7 {[%clk 0:01:59.7]} 19... Nxb7
{[%clk 0:01:21.6]} 20. Be4 {[%clk 0:01:59.8]} 20... Rab8 {[%clk 0:01:20.7]} 21.
Qf3 {[%clk 0:01:59.7]} 21... Na5 {[%clk 0:01:18.3]} 22. b3 {[%clk 0:02:00.2]}
22... f5 {[%clk 0:01:12.9]} 23. exf6 {[%clk 0:01:58.1]} 23... Rxf6 {[%clk
0:01:12.6]} 24. Qd3 {[%clk 0:01:58.1]} 24... Nb7 {[%clk 0:01:02.5]} 25. Bg2
{[%clk 0:01:55.8]} 25... Qh6 {[%clk 0:01:01.4]} 26. d5 {[%clk 0:01:44.2]} 26...
Rd8 {[%clk 0:00:43.4]} 27. Rfe1 {[%clk 0:01:23.2]} 27... Qg5 {[%clk 0:00:39.9]}
28. f4 {[%clk 0:01:17.5]} 28... Qg4 {[%clk 0:00:39]} 29. Rad1 {[%clk 0:01:07.4]}
29... h5 {[%clk 0:00:28.9]} 30. Qe3 {[%clk 0:01:05.2]} 30... Nd6 {[%clk
0:00:20.1]} 31. dxe6 {[%clk 0:01:03.5]} 31... h4 {[%clk 0:00:11.8]} 32. Rxd6
{[%clk 0:01:02.6]} 32... Rxd6 {[%clk 0:00:11.4]} 33. e7 {[%clk 0:01:03]} 33...
Rfe6 {[%clk 0:00:10.7]} 34. e8=Q+ {[%clk 0:01:03.1]} 34... Rxe8 {[%clk
0:00:10.6]} 35. Qxe8+ {[%clk 0:01:04]} 35... Kh7 {[%clk 0:00:11.3]} 36. Qe4+
{[%clk 0:01:04]} 36... Kg8 {[%clk 0:00:11.5]} 37. Qf3 {[%clk 0:01:02.6]} 37...
Qf5 {[%clk 0:00:11.5]} 38. Qa8+ {[%clk 0:01:01.8]} 38... Kh7 {[%clk 0:00:11.4]}
39. Be4 {[%clk 0:01:02.2]} 1-0

[Event "*** Titled Tuesday Blitz"]
[Site "Chess.com"]
[Date "2020.10.27"]
[Round "6"]
[White "beto-betun"]
[Black "LogoCzar"]
[Result "1/2-1/2"]
[WhiteElo "2203"]
[BlackElo "2364"]
[TimeControl "180+1"]
[EndTime "11:06:15 PDT"]
[Termination "Game drawn by agreement"]

1. d4 {[%clk 0:02:57.6]} 1... d5 {[%clk 0:03:00.1]} 2. Nf3 {[%clk 0:02:56.3]}
2... Nf6 {[%clk 0:03:00.2]} 3. c4 {[%clk 0:02:54.5]} 3... c6 {[%clk 0:03:00.3]}
4. Nc3 {[%clk 0:02:51.8]} 4... e6 {[%clk 0:03:00.4]} 5. g3 {[%clk 0:02:47.4]}
5... dxc4 {[%clk 0:03:00.3]} 6. a4 {[%clk 0:02:44.9]} 6... Bb4 {[%clk 0:03:00]}
7. Bg2 {[%clk 0:02:39]} 7... Nbd7 {[%clk 0:03:00.1]} 8. O-O {[%clk 0:02:36.3]}
8... O-O {[%clk 0:03:00.1]} 9. Qc2 {[%clk 0:02:33.5]} 9... Nd5 {[%clk
0:02:59.9]} 10. e4 {[%clk 0:02:30.7]} 10... Nxc3 {[%clk 0:02:59.2]} 11. bxc3
{[%clk 0:02:30.8]} 11... Be7 {[%clk 0:02:58.9]} 12. Be3 {[%clk 0:02:21.6]} 12...
b5 {[%clk 0:02:58.2]} 13. axb5 {[%clk 0:02:18.4]} 13... cxb5 {[%clk 0:02:58.1]}
14. Rfb1 {[%clk 0:02:18.3]} 14... a6 {[%clk 0:02:55]} 15. Rxb5 {[%clk
0:02:16.9]} 15... axb5 {[%clk 0:02:54.7]} 16. Rxa8 {[%clk 0:02:15.7]} 16... Qc7
{[%clk 0:02:53.9]} 17. Qb1 {[%clk 0:02:01.5]} 17... Qc6 {[%clk 0:02:48.5]} 18.
Ra1 {[%clk 0:01:52.2]} 18... Bb7 {[%clk 0:02:48]} 19. Nd2 {[%clk 0:01:36.7]}
19... Nb6 {[%clk 0:02:46.7]} 20. Ra5 {[%clk 0:01:25.6]} 20... b4 {[%clk
0:02:34.9]} 21. d5 {[%clk 0:01:21.4]} 21... exd5 {[%clk 0:02:32.4]} 22. exd5
{[%clk 0:01:20.7]} 22... Qc7 {[%clk 0:02:29.4]} 23. d6 {[%clk 0:01:17.3]} 23...
Bxd6 {[%clk 0:02:26.6]} 24. Bxb7 {[%clk 0:01:16.8]} 24... Qxb7 {[%clk
0:02:25.8]} 25. Rb5 {[%clk 0:01:10.4]} 25... Bc7 {[%clk 0:02:16.1]} 26. Rxb4
{[%clk 0:01:07]} 26... Qd5 {[%clk 0:02:12]} 27. Rb5 {[%clk 0:01:06.6]} 27... Qd7
{[%clk 0:02:05.7]} 28. Rxb6 {[%clk 0:00:54.9]} 28... Bxb6 {[%clk 0:01:55.7]} 29.
Qxb6 {[%clk 0:00:55.6]} 29... Rc8 {[%clk 0:01:52.7]} 30. Bd4 {[%clk 0:00:52.8]}
30... f6 {[%clk 0:01:51.4]} 31. Nf3 {[%clk 0:00:47.7]} 31... Qd5 {[%clk
0:01:46.8]} 32. Kg2 {[%clk 0:00:43.5]} 32... Re8 {[%clk 0:01:43.3]} 33. h3
{[%clk 0:00:40.4]} 33... h5 {[%clk 0:01:42.6]} 34. Qc5 {[%clk 0:00:38.6]} 34...
Qxc5 {[%clk 0:01:37]} 35. Bxc5 {[%clk 0:00:39.5]} 35... Kf7 {[%clk 0:01:36.7]}
36. Nd4 {[%clk 0:00:37.1]} 36... g5 {[%clk 0:01:35.4]} 37. Nc2 {[%clk
0:00:35.2]} 37... Ke6 {[%clk 0:01:35]} 38. Ne3 {[%clk 0:00:33.1]} 38... f5
{[%clk 0:01:33.6]} 39. Bd4 {[%clk 0:00:23]} 39... Rc8 {[%clk 0:01:21.3]} 40. g4
{[%clk 0:00:17.8]} 40... hxg4 {[%clk 0:01:19.4]} 41. hxg4 {[%clk 0:00:17.8]}
41... fxg4 {[%clk 0:01:19.5]} 42. Kg3 {[%clk 0:00:15.6]} 1/2-1/2

[Event "*** Titled Tuesday Blitz"]
[Site "Chess.com"]
[Date "2020.10.27"]
[Round "6"]
[White "YoungUzbek"]
[Black "FairChess_on_YouTube"]
[Result "0-1"]
[WhiteElo "2766"]
[BlackElo "2978"]
[TimeControl "180+1"]
[EndTime "11:06:17 PDT"]
[Termination "FairChess_on_YouTube won by resignation"]

1. d4 {[%clk 0:03:00.9]} 1... Nf6 {[%clk 0:02:59]} 2. Bg5 {[%clk 0:03:01]} 2...
Ne4 {[%clk 0:02:55.8]} 3. Bh4 {[%clk 0:03:01.4]} 3... c5 {[%clk 0:02:53.8]} 4.
Nd2 {[%clk 0:03:01.7]} 4... Nxd2 {[%clk 0:02:50]} 5. Qxd2 {[%clk 0:03:02.6]}
5... cxd4 {[%clk 0:02:50.4]} 6. Nf3 {[%clk 0:03:02.7]} 6... Nc6 {[%clk 0:02:46]}
7. Nxd4 {[%clk 0:03:02.7]} 7... Qb6 {[%clk 0:02:44.8]} 8. Nb3 {[%clk 0:03:03.1]}
8... g6 {[%clk 0:02:19.7]} 9. Qc3 {[%clk 0:02:21.1]} 9... Qb4 {[%clk 0:02:19.2]}
10. Qxb4 {[%clk 0:02:20.4]} 10... Nxb4 {[%clk 0:02:20.1]} 11. Kd2 {[%clk
0:02:20.7]} 11... d6 {[%clk 0:02:03.8]} 12. c3 {[%clk 0:02:20.2]} 12... Nd5
{[%clk 0:02:03.2]} 13. e4 {[%clk 0:02:19]} 13... Bh6+ {[%clk 0:02:00.1]} 14. Kc2
{[%clk 0:02:17.9]} 14... Nb6 {[%clk 0:01:58.3]} 15. a4 {[%clk 0:02:13]} 15... a6
{[%clk 0:01:50.6]} 16. Nd4 {[%clk 0:02:05.6]} 16... e5 {[%clk 0:01:46.8]} 17.
Nf3 {[%clk 0:01:56.8]} 17... f5 {[%clk 0:01:45.8]} 18. a5 {[%clk 0:01:39.6]}
18... Nd7 {[%clk 0:01:41.6]} 19. exf5 {[%clk 0:01:33.6]} 19... Nc5 {[%clk
0:01:38.3]} 20. b4 {[%clk 0:01:27.4]} 20... Bxf5+ {[%clk 0:01:37.4]} 21. Kb2
{[%clk 0:01:28]} 21... Nd3+ {[%clk 0:01:31.1]} 22. Kb3 {[%clk 0:01:22.6]} 22...
Rc8 {[%clk 0:01:24.6]} 23. Rd1 {[%clk 0:01:22.4]} 23... Be6+ {[%clk 0:01:22.7]}
24. Kc2 {[%clk 0:01:08.3]} 24... Nxb4+ {[%clk 0:01:21.9]} 25. Kb2 {[%clk
0:01:08.6]} 25... Nd5 {[%clk 0:01:14.7]} 26. c4 {[%clk 0:01:08.7]} 26... Nf4
{[%clk 0:01:11.5]} 27. Rxd6 {[%clk 0:00:54.7]} 27... O-O {[%clk 0:01:11.5]} 28.
Nxe5 {[%clk 0:00:48.7]} 28... Bg7 {[%clk 0:01:09.4]} 29. Kb3 {[%clk 0:00:33.8]}
29... Bxe5 {[%clk 0:01:08.8]} 30. Rb6 {[%clk 0:00:33.9]} 30... Bd4 {[%clk
0:00:58.4]} 31. Rd6 {[%clk 0:00:24.4]} 31... Bc5 {[%clk 0:00:58]} 32. Rd2 {[%clk
0:00:20.8]} 32... b5 {[%clk 0:00:57.8]} 33. axb6 {[%clk 0:00:20.3]} 33... Rb8
{[%clk 0:00:58.1]} 34. g3 {[%clk 0:00:20.1]} 34... Rxb6+ {[%clk 0:00:58]} 35.
Ka2 {[%clk 0:00:19.9]} 35... Nh3 {[%clk 0:00:56.2]} 36. f4 {[%clk 0:00:17]}
36... Nf2 {[%clk 0:00:54.8]} 37. Rg1 {[%clk 0:00:10.2]} 37... Ne4 {[%clk
0:00:54.6]} 0-1

[Event "*** Titled Tuesday Blitz"]
[Site "Chess.com"]
[Date "2020.10.27"]
[Round "6"]
[White "sokidze"]
[Black "googlegoom"]
[Result "1-0"]
[WhiteElo "2611"]
[BlackElo "2382"]
[TimeControl "180+1"]
[EndTime "11:06:17 PDT"]
[Termination "sokidze won by resignation"]

1. e4 {[%clk 0:03:00.9]} 1... c5 {[%clk 0:02:59.8]} 2. Nf3 {[%clk 0:03:01.1]}
2... Nc6 {[%clk 0:03:00.1]} 3. d4 {[%clk 0:03:01.7]} 3... cxd4 {[%clk
0:03:00.5]} 4. Nxd4 {[%clk 0:03:02.6]} 4... Qb6 {[%clk 0:03:01]} 5. Nb5 {[%clk
0:02:59]} 5... a6 {[%clk 0:03:00.9]} 6. Be3 {[%clk 0:02:58.1]} 6... Qd8 {[%clk
0:03:01.5]} 7. N5c3 {[%clk 0:02:55]} 7... e6 {[%clk 0:03:01.9]} 8. Nd2 {[%clk
0:02:54.5]} 8... d6 {[%clk 0:03:00.3]} 9. g3 {[%clk 0:02:52.6]} 9... Nf6 {[%clk
0:02:56.7]} 10. Bg2 {[%clk 0:02:52.9]} 10... Qc7 {[%clk 0:02:53.9]} 11. O-O
{[%clk 0:02:52.6]} 11... Be7 {[%clk 0:02:53.6]} 12. h3 {[%clk 0:02:48.3]} 12...
O-O {[%clk 0:02:52.1]} 13. a4 {[%clk 0:02:48.1]} 13... Ne5 {[%clk 0:02:44.6]}
14. Qe2 {[%clk 0:02:44.2]} 14... Rd8 {[%clk 0:02:38.6]} 15. f4 {[%clk
0:02:42.5]} 15... Ned7 {[%clk 0:02:38.6]} 16. a5 {[%clk 0:02:30.7]} 16... Rb8
{[%clk 0:02:27.1]} 17. Nc4 {[%clk 0:02:17.5]} 17... Re8 {[%clk 0:01:58.2]} 18.
Nb6 {[%clk 0:02:08.2]} 18... Nc5 {[%clk 0:01:46]} 19. Rfd1 {[%clk 0:02:03]}
19... Bf8 {[%clk 0:01:25.7]} 20. Rac1 {[%clk 0:01:47.8]} 20... h5 {[%clk
0:01:03.4]} 21. Qf2 {[%clk 0:01:32.1]} 21... Ncd7 {[%clk 0:00:50.8]} 22. Nca4
{[%clk 0:01:27.8]} 22... Nxb6 {[%clk 0:00:35.1]} 23. Nxb6 {[%clk 0:01:25.4]}
23... Bd7 {[%clk 0:00:32.4]} 24. e5 {[%clk 0:01:21.3]} 24... dxe5 {[%clk
0:00:26.5]} 25. fxe5 {[%clk 0:01:18.3]} 25... Qxe5 {[%clk 0:00:26.8]} 26. Nxd7
{[%clk 0:01:16.7]} 26... Nxd7 {[%clk 0:00:25.2]} 27. Rxd7 {[%clk 0:01:17.6]}
27... Qxa5 {[%clk 0:00:25.1]} 28. Qxf7+ {[%clk 0:01:15.5]} 28... Kh8 {[%clk
0:00:25.3]} 29. Rf1 {[%clk 0:01:10.4]} 29... Qe5 {[%clk 0:00:10]} 30. Bd4 {[%clk
0:00:47]} 30... Qxg3 {[%clk 0:00:09.4]} 31. Qxh5+ {[%clk 0:00:47.5]} 31... Kg8
{[%clk 0:00:09.1]} 32. Rxf8+ {[%clk 0:00:48.1]} 1-0

[Event "*** Titled Tuesday Blitz"]
[Site "Chess.com"]
[Date "2020.10.27"]
[Round "6"]
[White "MartinMatthiesen"]
[Black "IngOscarArdila"]
[Result "1-0"]
[WhiteElo "2420"]
[BlackElo "2168"]
[TimeControl "180+1"]
[EndTime "11:06:17 PDT"]
[Termination "MartinMatthiesen won by resignation"]

1. d4 {[%clk 0:03:00.9]} 1... Nf6 {[%clk 0:02:59.4]} 2. c4 {[%clk 0:03:00.4]}
2... g6 {[%clk 0:02:59.3]} 3. Nc3 {[%clk 0:03:00]} 3... Bg7 {[%clk 0:02:59.2]}
4. e4 {[%clk 0:02:59.7]} 4... d6 {[%clk 0:02:58.9]} 5. Nf3 {[%clk 0:02:59.8]}
5... O-O {[%clk 0:02:59]} 6. Be2 {[%clk 0:02:59.9]} 6... Nbd7 {[%clk 0:02:57.7]}
7. Be3 {[%clk 0:02:58.3]} 7... Ng4 {[%clk 0:02:55.1]} 8. Bg5 {[%clk 0:02:57.7]}
8... h6 {[%clk 0:02:53]} 9. Bh4 {[%clk 0:02:57.6]} 9... g5 {[%clk 0:02:41.5]}
10. Bg3 {[%clk 0:02:57.5]} 10... e5 {[%clk 0:02:39.2]} 11. d5 {[%clk 0:02:54]}
11... Nc5 {[%clk 0:02:36.8]} 12. Nd2 {[%clk 0:02:32.8]} 12... Nf6 {[%clk
0:02:34.7]} 13. h4 {[%clk 0:02:23.9]} 13... g4 {[%clk 0:02:24.2]} 14. b4 {[%clk
0:02:19.5]} 14... Na6 {[%clk 0:02:22.7]} 15. a3 {[%clk 0:02:18.1]} 15... h5
{[%clk 0:02:22.4]} 16. f3 {[%clk 0:02:07]} 16... c6 {[%clk 0:02:19.4]} 17. Rc1
{[%clk 0:01:48.1]} 17... Nc7 {[%clk 0:02:13.9]} 18. f4 {[%clk 0:01:34.2]} 18...
exf4 {[%clk 0:02:11.4]} 19. Bxf4 {[%clk 0:01:34.7]} 19... Re8 {[%clk 0:02:11.3]}
20. Bg5 {[%clk 0:01:28.9]} 20... cxd5 {[%clk 0:02:10.3]} 21. cxd5 {[%clk
0:01:28]} 21... Qe7 {[%clk 0:02:01]} 22. O-O {[%clk 0:01:26.4]} 22... Qe5 {[%clk
0:01:59]} 23. Nc4 {[%clk 0:01:18.6]} 23... Qe7 {[%clk 0:01:48.7]} 24. e5 {[%clk
0:01:14]} 24... dxe5 {[%clk 0:01:47.2]} 25. d6 {[%clk 0:01:14.1]} 25... Qe6
{[%clk 0:01:40.9]} 26. dxc7 {[%clk 0:01:12.1]} 26... Nh7 {[%clk 0:01:40.8]} 27.
Nd6 {[%clk 0:01:06.1]} 27... Rf8 {[%clk 0:01:36.4]} 28. Bc4 {[%clk 0:01:04]}
28... Qg6 {[%clk 0:01:34]} 29. Nxf7 {[%clk 0:01:02.6]} 29... Be6 {[%clk
0:01:28.9]} 30. Bxe6 {[%clk 0:00:57.4]} 30... Qxe6 {[%clk 0:01:28]} 31. Nd6
{[%clk 0:00:54.9]} 31... Rxf1+ {[%clk 0:01:22.1]} 32. Qxf1 {[%clk 0:00:51.7]}
32... Qxd6 {[%clk 0:01:19.9]} 33. Qc4+ {[%clk 0:00:52]} 33... Kh8 {[%clk
0:01:16.9]} 34. c8=Q+ {[%clk 0:00:51.8]} 34... Rxc8 {[%clk 0:01:17.2]} 35. Qxc8+
{[%clk 0:00:51.9]} 35... Nf8 {[%clk 0:01:14.1]} 36. Rd1 {[%clk 0:00:45.5]} 36...
Qb6+ {[%clk 0:01:13.4]} 37. Kh2 {[%clk 0:00:44.4]} 37... e4 {[%clk 0:01:12.9]}
38. Be7 {[%clk 0:00:38]} 38... Qf2 {[%clk 0:01:07.3]} 39. Nxe4 {[%clk 0:00:23]}
39... Be5+ {[%clk 0:00:58.8]} 40. Kh1 {[%clk 0:00:23.2]} 40... Bg7 {[%clk
0:00:50.3]} 41. Nxf2 {[%clk 0:00:21.9]} 1-0

[Event "*** Titled Tuesday Blitz"]
[Site "Chess.com"]
[Date "2020.10.27"]
[Round "6"]
[White "ENajer77"]
[Black "mishanick"]
[Result "0-1"]
[WhiteElo "2686"]
[BlackElo "2987"]
[TimeControl "180+1"]
[EndTime "11:06:18 PDT"]
[Termination "mishanick won on time"]

1. e4 {[%clk 0:03:00.9]} 1... c5 {[%clk 0:02:59.2]} 2. Nf3 {[%clk 0:03:00.6]}
2... d6 {[%clk 0:02:59.7]} 3. d4 {[%clk 0:03:01.1]} 3... cxd4 {[%clk 0:03:00.6]}
4. Nxd4 {[%clk 0:03:01.7]} 4... Nf6 {[%clk 0:03:01.3]} 5. Nc3 {[%clk 0:03:02.2]}
5... a6 {[%clk 0:03:02]} 6. Bd3 {[%clk 0:03:00.6]} 6... e5 {[%clk 0:02:59.3]} 7.
Nde2 {[%clk 0:02:59.8]} 7... Be7 {[%clk 0:02:59.8]} 8. O-O {[%clk 0:02:59]} 8...
Be6 {[%clk 0:02:59.2]} 9. f4 {[%clk 0:02:50.9]} 9... exf4 {[%clk 0:03:00.1]} 10.
Nxf4 {[%clk 0:02:51]} 10... Nc6 {[%clk 0:03:00.3]} 11. Nxe6 {[%clk 0:02:46]}
11... fxe6 {[%clk 0:03:01.2]} 12. Bc4 {[%clk 0:02:46.3]} 12... Qc8 {[%clk
0:02:42.7]} 13. a3 {[%clk 0:02:08.1]} 13... Ne5 {[%clk 0:02:38.4]} 14. Bb3
{[%clk 0:02:05.5]} 14... b5 {[%clk 0:02:38.9]} 15. Bf4 {[%clk 0:02:02.1]} 15...
Nc4 {[%clk 0:02:37.2]} 16. Bxc4 {[%clk 0:01:55.9]} 16... Qxc4 {[%clk 0:02:38.1]}
17. Bxd6 {[%clk 0:01:52.6]} 17... Rd8 {[%clk 0:02:30.2]} 18. e5 {[%clk
0:01:52.5]} 18... Bxd6 {[%clk 0:02:28.8]} 19. exd6 {[%clk 0:01:51.4]} 19... O-O
{[%clk 0:02:28.7]} 20. Kh1 {[%clk 0:01:03.4]} 20... Qc6 {[%clk 0:02:27.4]} 21.
Qe2 {[%clk 0:01:01.2]} 21... Rxd6 {[%clk 0:02:27.2]} 22. Rad1 {[%clk 0:00:58.1]}
22... Rxd1 {[%clk 0:02:25.6]} 23. Rxd1 {[%clk 0:00:57]} 23... Re8 {[%clk
0:02:16.9]} 24. Qe5 {[%clk 0:00:54.4]} 24... Ng4 {[%clk 0:02:17.2]} 25. Qg3
{[%clk 0:00:52.1]} 25... Nf6 {[%clk 0:02:08.3]} 26. Qd6 {[%clk 0:00:51.5]} 26...
Rc8 {[%clk 0:02:04.4]} 27. Kg1 {[%clk 0:00:48.7]} 27... h6 {[%clk 0:02:03.6]}
28. h3 {[%clk 0:00:48.4]} 28... Kf7 {[%clk 0:01:45.2]} 29. Kh2 {[%clk
0:00:34.3]} 29... Rc7 {[%clk 0:01:39.6]} 30. Qf4 {[%clk 0:00:32.9]} 30... Ke7
{[%clk 0:01:29.1]} 31. a4 {[%clk 0:00:14.5]} 31... bxa4 {[%clk 0:01:18.5]} 32.
Ra1 {[%clk 0:00:14.3]} 32... Rb7 {[%clk 0:01:14.4]} 33. Rxa4 {[%clk 0:00:12.5]}
33... Rxb2 {[%clk 0:01:09.7]} 34. Qd4 {[%clk 0:00:02.4]} 34... Rxc2 {[%clk
0:01:03.3]} 35. Qb4+ {[%clk 0:00:01.2]} 35... Kf7 {[%clk 0:01:02.3]} 0-1

[Event "*** Titled Tuesday Blitz"]
[Site "Chess.com"]
[Date "2020.10.27"]
[Round "6"]
[White "albi1999"]
[Black "RobPeresian"]
[Result "1-0"]
[WhiteElo "2619"]
[BlackElo "2431"]
[TimeControl "180+1"]
[EndTime "11:06:22 PDT"]
[Termination "albi1999 won by resignation"]

1. d4 {[%clk 0:03:00.9]} 1... Nf6 {[%clk 0:02:58.9]} 2. c4 {[%clk 0:03:00.6]}
2... e6 {[%clk 0:02:59.1]} 3. Nf3 {[%clk 0:03:00.6]} 3... d5 {[%clk 0:02:58.6]}
4. g3 {[%clk 0:03:00.4]} 4... dxc4 {[%clk 0:02:57.8]} 5. Bg2 {[%clk 0:03:00.2]}
5... Nc6 {[%clk 0:02:57.8]} 6. Qa4 {[%clk 0:02:58.9]} 6... Bb4+ {[%clk
0:02:53.2]} 7. Bd2 {[%clk 0:02:56.9]} 7... Nd5 {[%clk 0:02:48.1]} 8. Bxb4 {[%clk
0:02:56.9]} 8... Nxb4 {[%clk 0:02:45]} 9. Na3 {[%clk 0:02:52.1]} 9... Rb8 {[%clk
0:02:36.5]} 10. O-O {[%clk 0:02:40]} 10... a6 {[%clk 0:02:30.9]} 11. Ne5 {[%clk
0:02:36.8]} 11... O-O {[%clk 0:02:19.7]} 12. Nxc6 {[%clk 0:02:35.5]} 12... Nxc6
{[%clk 0:02:17.5]} 13. Bxc6 {[%clk 0:02:31.9]} 13... bxc6 {[%clk 0:02:17.4]} 14.
Nxc4 {[%clk 0:02:28.9]} 14... Qxd4 {[%clk 0:02:14.5]} 15. Rfd1 {[%clk
0:02:26.6]} 15... Qc5 {[%clk 0:02:09.9]} 16. Rac1 {[%clk 0:02:24.6]} 16... Qb5
{[%clk 0:01:39.9]} 17. Qc2 {[%clk 0:02:21]} 17... c5 {[%clk 0:01:32.4]} 18. Rd2
{[%clk 0:02:11.4]} 18... Bb7 {[%clk 0:01:30.8]} 19. b3 {[%clk 0:02:05.5]} 19...
Ba8 {[%clk 0:01:17]} 20. Ne3 {[%clk 0:02:00.5]} 20... Qb4 {[%clk 0:01:08.5]} 21.
Rd7 {[%clk 0:01:50.8]} 21... f5 {[%clk 0:00:30]} 22. Qxc5 {[%clk 0:01:42.7]}
22... f4 {[%clk 0:00:15.2]} 23. Qxb4 {[%clk 0:01:36.7]} 23... Rxb4 {[%clk
0:00:15]} 24. Rcxc7 {[%clk 0:01:30.8]} 24... Be4 {[%clk 0:00:14.8]} 25. gxf4
{[%clk 0:01:23.8]} 25... Rxf4 {[%clk 0:00:14.6]} 26. Rxg7+ {[%clk 0:01:21.2]}
26... Kh8 {[%clk 0:00:13.4]} 27. Rge7 {[%clk 0:01:21]} 27... Rf8 {[%clk
0:00:13.4]} 28. f3 {[%clk 0:01:19.4]} 28... Bg6 {[%clk 0:00:13.6]} 29. Rxe6
{[%clk 0:01:12.3]} 29... a5 {[%clk 0:00:13.9]} 30. Ra6 {[%clk 0:01:05.7]} 30...
Re8 {[%clk 0:00:13]} 31. Kf2 {[%clk 0:01:05.4]} 31... Rh4 {[%clk 0:00:12.9]} 32.
Kg3 {[%clk 0:00:55.8]} 32... Rh5 {[%clk 0:00:12.8]} 33. Ng4 {[%clk 0:00:52.6]}
33... Rxe2 {[%clk 0:00:11.5]} 34. Ra8+ {[%clk 0:00:51.9]} 34... Re8 {[%clk
0:00:11]} 35. Rxe8+ {[%clk 0:00:51.4]} 35... Bxe8 {[%clk 0:00:11.6]} 36. Rc8
{[%clk 0:00:52.3]} 1-0